fUSD/lending_fUSD_20251227
["ID","MTS","AMOUNT","RATE_DAILY","PERIOD"]
[399898722,1766831930047,-157.65642569,0.0001255,2]
[399898723,1766831930071,-142.34357431,0.00012642,2]
[399898724,1766831931891,-62.36803096,0.00012642,2]
[399898725,1766831931914,-132.63196904,0.00012642,2]
[399898726,1766831937735,-267.90004059,0.00012642,2]
[399898727,1766831939490,-99.46799037,0.00012642,2]
[399898728,1766831939514,-207.77955967,0.00012642,2]
[399898729,1766831942220,-201.20365773,0.00012642,2]
[399898730,1766831945426,-91.0167826,0.00012642,2]
[399898731,1766831945450,-208.9832174,0.00012642,2]
[399898732,1766831949027,-291.0167826,0.00012642,2]
[399898733,1766831949071,-500.0,0.00012642,2]
[399898734,1766831949102,-500.0,0.00012642,2]
[399898735,1766831949134,-537.69353392,0.00012642,2]
[399898736,1766831949168,-500.0,0.00012642,2]
[399898737,1766831949197,-500.0,0.00012642,2]
[399898738,1766831949224,-500.0,0.00012642,2]
[399898739,1766831949253,-500.0,0.00012642,2]
[399898740,1766831949281,-500.0,0.00012642,2]
[399898741,1766831949308,-500.0,0.00012642,2]
[399898742,1766831949336,-151.0,0.00012642,2]
[399898743,1766831950006,-151.0,0.00012642,2]
[399898744,1766831950028,-23.77566897,0.00012642,2]
[399898745,1766831951849,-127.22433103,0.00012642,2]
[399898746,1766831951881,-151.0,0.00012642,2]
[399898747,1766831951910,-151.0,0.00012642,2]
[399898748,1766831951939,-151.0,0.00012642,2]
[399898749,1766831951967,-151.0,0.00012642,2]
[399898750,1766831951995,-151.0,0.00012642,2]
[399898751,1766831952025,-151.0,0.00012642,2]
[399898752,1766831952058,-151.0,0.00012642,2]
[399898753,1766831952090,-151.0,0.00012642,2]
[399898754,1766831952118,-207.4,0.00012642,2]
[399898755,1766831952146,-300.0,0.00012645,2]
[399898756,1766831952174,-300.0,0.00012647,2]
[399898757,1766831952206,-325.36022481,0.00012649,2]
[399898758,1766831952237,-500.0,0.00012649,2]
[399898759,1766831952269,-500.0,0.00012649,2]
[399898760,1766831952300,-500.0,0.00012649,2]
[399898761,1766831952331,-500.0,0.00012649,2]
[399898762,1766831952362,-500.0,0.00012649,2]
[399898763,1766831953181,-236.00361132,0.00012649,2]
[399898764,1766831958025,-263.99638868,0.00012649,2]
[399898765,1766831958064,-500.0,0.00012649,2]
[399898766,1766831958096,-603.37072637,0.00012649,2]
[399898767,1766831958130,-500.0,0.00012649,2]
[399898768,1766831958161,-500.0,0.00012649,2]
[399898769,1766831958192,-500.0,0.00012649,2]
[399898770,1766831958224,-500.0,0.00012649,2]
[399898771,1766831958255,-500.0,0.00012649,2]
[399898772,1766831958287,-500.0,0.00012649,2]
[399898773,1766831958317,-500.0,0.00012649,2]
[399898774,1766831959578,-342.84837436,0.00012649,2]
[399898775,1766831978296,-152.06562339,0.00012649,2]
[399898776,1766831979802,-5.08600225,0.00012649,2]
[399898777,1766831979827,-197.53137275,0.00012649,2]
[399898778,1766831981246,-52.46862725,0.00012649,2]
[399898779,1766831981271,-202.93906204,0.00012649,2]
[399898780,1766831983475,-201.23107132,0.00012649,2]
[399898781,1766831986888,-95.82986664,0.00012649,2]
[399898782,1766831986919,-80.10964851,0.00012649,2]
[399898783,1766831989997,-392.73201781,0.0001255,2]
[399898784,1766831991548,-223.27719394,0.0001255,2]
[399898785,1766831995951,-296.20637932,0.0001255,2]
[399898786,1766831998438,-317.53417626,0.0001255,2]
[399898787,1766832001753,-133.96863267,0.0001255,2]
[399898788,1766832001776,-68.75509169,0.00012648,2]
[399898789,1766832004118,-253.0,0.0001255,2]
[399898790,1766832004144,-67.78185682,0.00012648,2]
[399898791,1766832006234,-163.46305149,0.00012648,2]
[399898792,1766832006258,-202.69860137,0.00012648,2]
[399898793,1766832008621,-97.30139863,0.00012648,2]
[399898794,1766832008653,-194.17071639,0.00012649,2]
[399898795,1766832012356,-225.7196351,0.00012649,2]
[399898796,1766832012385,-8.11871204,0.00012649,2]
[399898797,1766832013902,-164.77834246,0.00012649,2]
[399898798,1766832017223,-226.81699666,0.00012649,2]
[399898799,1766832019237,-202.62079403,0.00012637,2]
[399898800,1766832022403,-187.28530058,0.00012637,2]
[399898801,1766832025257,-175.38518518,0.00012637,2]
[399898802,1766832027347,-203.01339086,0.00012637,2]
[399898803,1766832029649,-163.14635088,0.00012637,2]
[399898804,1766832032879,-211.09466061,0.00012637,2]
[399898805,1766832037963,-451.0,0.00012637,2]
[399898806,1766832041551,-293.45686372,0.00012637,2]
[399898807,1766832044347,-192.85106938,0.00012637,2]
[399898808,1766832046883,-185.56190518,0.00012637,2]
[399898809,1766832049654,-198.16501108,0.00012637,2]
[399898810,1766832051186,-307.14893062,0.00012637,2]
[399898811,1766832054272,-346.0670622,0.00012637,2]
[399898812,1766832055804,-300.0,0.00012637,2]
[399898813,1766832057255,-359.3725495,0.00012637,2]
[399898814,1766832060612,-267.46585275,0.00012637,2]
[399898815,1766832062794,-220.44174219,0.00012633,2]
[399898816,1766832065931,-156.15921717,0.00012633,2]
[399898817,1766832067355,-253.351569,0.00012633,2]
[399898819,1766832070317,-246.648431,0.00012633,2]
[399898820,1766832072074,-367.14743054,0.00012633,2]
[399898821,1766832073617,-263.72438278,0.00012633,2]
[399898823,1766832077874,-210.92424394,0.00012633,2]
[399898824,1766832079377,-164.42133943,0.00012633,2]
[399898825,1766832081849,-163.58398172,0.00012633,2]
[399898826,1766832085952,-182.57397268,0.00012633,2]
[399898827,1766832088516,-271.09883955,0.00012633,2]
[399898828,1766832091231,-228.57726909,0.00012633,2]
[399898829,1766832093778,-191.8681025,0.00012633,2]
[399898830,1766832095396,-175.97006947,0.00012633,2]
[399898831,1766832097373,-211.83373154,0.00012633,2]
[399898832,1766832097401,-151.2729288,0.00012637,2]
[399898833,1766832101714,-278.25639832,0.00012637,2]
[399898834,1766832105038,-152.86532469,0.00012637,2]
[399898835,1766832106553,-217.6111843,0.00012637,2]
[399898836,1766832109851,-490.30061707,0.0001255,2]
[399898837,1766832111964,-266.2528885,0.0001255,2]
[399898838,1766832115874,-199.19494015,0.0001255,2]
[399898839,1766832117394,-407.46982907,0.0001255,2]
[399898840,1766832119618,-224.38656483,0.00012399,2]
[399898841,1766832122204,-227.28298349,0.00012399,2]
[399898842,1766832124821,-220.76942773,0.00012399,2]
[399898843,1766832126379,-522.78021213,0.00012399,2]
[399898844,1766832127889,-379.11422864,0.00012399,2]
[399898846,1766832165697,-39.17708571,0.00012399,2]
[399898847,1766832165728,-250.0,0.00012474,2]
[399898848,1766832165757,-300.0,0.00012549,2]
[399898849,1766832165787,-300.0,0.00012549,2]
[399898850,1766832193137,-7407.52763336,0.0001255,2]
[399898860,1766832349273,291.43,6.865e-05,2]
[399898861,1766832349791,291.43,7.226e-05,2]
[399898862,1766832350000,291.43,7.587e-05,2]
[399898863,1766832350505,291.43,7.948e-05,2]
[399898864,1766832350554,291.43,8.31e-05,2]
[399898865,1766832350628,291.43,8.671e-05,2]
[399898866,1766832350819,291.43,9.032e-05,2]
[399898867,1766832351029,291.43,9.394e-05,2]
[399898868,1766832351222,29.73918515,9.755e-05,2]
[399898869,1766832351248,261.69081485,9.755e-05,2]
[399898870,1766832351441,291.43,0.00010116,2]
[399898871,1766832351653,291.43,0.00010477,2]
[399898872,1766832351965,291.43,0.00010839,2]
[399898873,1766832352158,291.43,0.000112,2]
[399898874,1766832352354,291.43,0.00011561,2]
[399898875,1766832352562,291.43,0.00011923,2]
[399898876,1766832352761,291.43,0.00012284,2]
[399898877,1766832383374,-289.55755468,0.0001254,2]
[399898893,1766832609128,-253.0,0.00012527,2]
[399898894,1766832609152,-62.22574699,0.00012527,2]
[399898895,1766832610661,-507.30747742,0.00012527,2]
[399898896,1766832613252,-103.84374138,0.00012527,2]
[399898897,1766832613276,-164.51409035,0.00012537,2]
[399898898,1766832615944,-125.03930965,0.00012537,2]
[399898899,1766832615967,-124.96069035,0.00012538,2]
[399898900,1766832618595,-125.03930965,0.00012538,2]
[399898901,1766832618628,-77.9513935,0.00012539,2]
[399898902,1766832621236,-222.0486065,0.00012539,2]
[399898903,1766832621261,-248.57137573,0.00012539,2]
[399898904,1766832622852,-162.29359023,0.00012539,2]
[399898909,1766832631388,-789.13503404,0.00012539,2]
[399898910,1766832631399,-300.0,0.00012539,2]
[399898911,1766832631410,-31193.94126618,0.0001254,2]
[399898912,1766832631423,-716.94477083,0.0001254,2]
[399898913,1766832631434,-764.48554386,0.0001254,2]
[399898914,1766832631446,-35.07086445,0.0001254,2]
[399898915,1766832631456,-378.53359169,0.00012549,2]
[399898916,1766832631468,-626.31575954,0.00012549,2]
[399898917,1766832631479,-6235.89006728,0.00012549,2]
[399898918,1766832631489,-743.5496,0.0001255,2]
[399898919,1766832631499,-762.41484604,0.00012588,2]
[399898920,1766832631547,-3746.13775876,0.00012588,2]
[399898921,1766832631557,-500.0,0.00012636,2]
[399898934,1766832631835,-197.3762555,0.00012636,2]
[399898937,1766832631849,-302.6237445,0.00012636,2]
[399898939,1766832631860,-500.0,0.00012636,2]
[399898941,1766832631870,-19.48187584,0.00012636,2]
[399898943,1766832631883,-480.51812416,0.00012636,2]
[399898945,1766832631893,-500.0,0.00012636,2]
[399898947,1766832631904,-500.0,0.00012636,2]
[399898949,1766832631914,-500.0,0.00012636,2]
[399898950,1766832631924,-500.0,0.00012636,2]
[399898951,1766832631935,-500.0,0.00012636,2]
[399898952,1766832631945,-500.0,0.00012636,2]
[399898953,1766832631956,-500.0,0.00012636,2]
[399898954,1766832631966,-500.0,0.00012636,2]
[399898955,1766832631976,-500.0,0.00012636,2]
[399898956,1766832631986,-346.16187584,0.00012636,2]
[399898957,1766832632002,-153.83812416,0.00012636,2]
[399898958,1766832632011,-500.0,0.00012636,2]
[399898959,1766832632022,-354.90290412,0.00012636,2]
[399898960,1766832632036,-225.38743343,0.00012636,2]
[399898961,1766832632046,-500.0,0.00012636,2]
[399898962,1766832632057,-500.0,0.00012636,2]
[399898963,1766832632067,-500.0,0.00012636,2]
[399898964,1766832632078,-500.0,0.00012636,2]
[399898965,1766832632088,-306.71402721,0.00012636,2]
[399898966,1766832632104,-193.28597279,0.00012636,2]
[399898967,1766832632115,-500.0,0.00012636,2]
[399898968,1766832632124,-398.51634817,0.00012636,2]
[399898969,1766832632140,-101.48365183,0.00012636,2]
[399898970,1766832632151,-500.0,0.00012636,2]
[399898971,1766832632161,-500.0,0.00012636,2]
[399898972,1766832632171,-500.0,0.00012636,2]
[399898973,1766832632180,-500.0,0.00012636,2]
[399898974,1766832632189,-500.0,0.00012636,2]
[399898975,1766832632202,-500.0,0.00012636,2]
[399898976,1766832632212,-500.0,0.00012636,2]
[399898977,1766832632222,-500.0,0.00012636,2]
[399898978,1766832632232,-300.0,0.00012636,2]
[399898979,1766832632241,-500.0,0.00012636,2]
[399898980,1766832632251,-500.0,0.00012636,2]
[399898981,1766832632261,-500.0,0.00012636,2]
[399898982,1766832632272,-500.0,0.00012636,2]
[399898983,1766832632282,-500.0,0.00012636,2]
[399898984,1766832632294,-500.0,0.00012636,2]
[399898985,1766832632305,-500.0,0.00012636,2]
[399898986,1766832632316,-1904.25609116,0.00012637,2]
[399898987,1766832632329,-49643.61665536,0.00012637,2]
[399898988,1766832632340,-200.0,0.00012642,2]
[399898989,1766832632349,-200.0,0.00012642,2]
[399898990,1766832632359,-500.0,0.00012642,2]
[399898991,1766832632369,-151.0,0.00012642,2]
[399898992,1766832632379,-151.0,0.00012642,2]
[399898993,1766832632389,-151.0,0.00012642,2]
[399898994,1766832632402,-151.0,0.00012642,2]
[399898995,1766832632412,-151.0,0.00012642,2]
[399898996,1766832632422,-151.0,0.00012642,2]
[399898997,1766832632431,-151.0,0.00012642,2]
[399898998,1766832632441,-151.0,0.00012642,2]
[399898999,1766832632451,-151.0,0.00012642,2]
[399899000,1766832632462,-151.0,0.00012642,2]
[399899001,1766832632472,-151.0,0.00012642,2]
[399899002,1766832632482,-291.43,0.00012645,2]
[399899003,1766832632492,-43273.09713837,0.00012649,2]
[399899004,1766832632502,-200.0,0.00012649,2]
[399899005,1766832632512,-1024.39836448,0.0001269,2]
[399899006,1766832632522,-928.08197676,0.0001289,2]
[399899007,1766832632532,-291.43,0.00013006,2]
[399899008,1766832632542,-200.0,0.0001319,2]
[399899009,1766832632552,-201.61297217,0.0001319,2]
[399899010,1766832632564,-291.43,0.00013368,2]
[399899011,1766832632574,-173.89,0.00013555,2]
[399899012,1766832632585,-500.0,0.00013698,2]
[399899013,1766832632596,-500.0,0.00013698,2]
[399899014,1766832632606,-500.0,0.00013698,2]
[399899015,1766832632616,-500.0,0.00013698,2]
[399899016,1766832632626,-500.0,0.00013698,2]
[399899017,1766832632635,-500.0,0.00013698,2]
[399899018,1766832632645,-500.0,0.00013698,2]
[399899019,1766832632655,-383.38,0.00013699,2]
[399899020,1766832632665,-291.43,0.00013729,2]
[399899021,1766832632675,-200.0,0.00013738,2]
[399899022,1766832632686,-250.0,0.00013791,2]
[399899023,1766832632696,-300.0,0.00013791,2]
[399899024,1766832632707,-250.0,0.00013791,2]
[399899025,1766832632718,-195.0,0.00013804,2]
[399899026,1766832632728,-150.0,0.00013875,2]
[399899027,1766832632739,-1000.0,0.00013901,2]
[399899028,1766832632749,-1005.9940647,0.00014201,2]
[399899029,1766832632759,-12582.6474403,0.00014244,2]
[399899030,1766832632769,-738.1869359,0.00014252,2]
[399899031,1766832632780,-200.0,0.00014286,2]
[399899032,1766832632803,-4230.82,0.0001442,2]
[399899033,1766832632814,-224.4676167,0.00014561,2]
[399899034,1766832632824,-2807.5681384,0.00014602,2]
[399899035,1766832632835,-164.7117692,0.00014613,2]
[399899036,1766832632847,-207.88723197,0.00014834,2]
[399899037,1766832632857,-151.0,0.00014842,2]
[399899038,1766832632868,-151.0,0.00014842,2]
[399899039,1766832632879,-7240.73941846,0.00015477,2]
[399899040,1766832632889,-1024.39836439,0.0001558,2]
[399899041,1766832632899,-1000.0,0.00015639,2]
[399899042,1766832632910,-173.89,0.00015814,2]
[399899043,1766832632921,-200.0,0.0001583,2]
[399899044,1766832632931,-10098.54,0.00016147,2]
[399899045,1766832632941,-163.96941322,0.00016219,2]
[399899046,1766832632951,-150.0,0.00016219,2]
[399899047,1766832632962,-150.0,0.00016219,2]
[399899048,1766832632972,-150.0,0.00016219,2]
[399899049,1766832632982,-150.0,0.00016219,2]
[399899050,1766832632992,-150.0,0.00016219,2]
[399899051,1766832633002,-150.0,0.00016219,2]
[399899052,1766832633012,-150.0,0.00016246,2]
[399899053,1766832633023,-150.0,0.00016246,2]
[399899054,1766832633033,-150.0,0.00016246,2]
[399899055,1766832633043,-150.0,0.00016246,2]
[399899056,1766832633053,-150.0,0.00016246,2]
[399899057,1766832633063,-150.0,0.00016246,2]
[399899058,1766832633074,-200.0,0.00016274,2]
[399899059,1766832633084,-200.0,0.00016274,2]
[399899060,1766832633095,-150.0,0.00016274,2]
[399899061,1766832633106,-150.0,0.00016274,2]
[399899062,1766832633116,-200.0,0.00016274,2]
[399899063,1766832633127,-200.0,0.00016274,2]
[399899064,1766832633137,-150.0,0.00016301,2]
[399899065,1766832633152,-150.0,0.00016301,2]
[399899066,1766832633163,-250.50413515,0.00016329,2]
[399899067,1766832633172,-150.0,0.00016329,2]
[399899068,1766832633183,-228.0,0.00016356,2]
[399899069,1766832633194,-11187.3,0.00016418,2]
[399899070,1766832633204,-191.2,0.00016435,2]
[399899071,1766832633214,-2489.34,0.00016438,2]
[399899072,1766832633224,-166.66,0.00016894,2]
[399899073,1766832633234,-201.12732166,0.00016979,2]
[399899074,1766832633245,-354.24,0.00016999,2]
[399899075,1766832633255,-285220.22904192,0.00017,2]
[399899076,1766832633266,-7328.51157308,0.00017,2]
[399899077,1766832633276,-250.0,0.00017,2]
[399899078,1766832633287,-1000.0,0.00017377,2]
[399899079,1766832633300,-161.68,0.00017598,2]
[399899080,1766832633310,-928.0819767,0.00017642,2]
[399899081,1766832633320,-16163.34,0.00017785,2]
[399899082,1766832633331,-1782.42,0.000179,2]
[399899083,1766832633341,-38790.71359016,0.00018,2]
[399899084,1766832633351,-173.89,0.00018074,2]
[399899085,1766832633362,-211.79,0.0001822,2]
[399899086,1766832633372,-686.07,0.00018232,2]
[399899087,1766832633383,-166.66,0.00018288,2]
[399899088,1766832633394,-7240.73941846,0.00018405,2]
[399899089,1766832633405,-1024.39836439,0.0001847,2]
[399899090,1766832633415,-881.79,0.0001849,2]
[399899091,1766832633425,-500.0,0.00018731,2]
[399899092,1766832633436,-913.35580046,0.00019,2]
[399899093,1766832633446,-1176.14250493,0.00019,2]
[399899094,1766832633456,-300.0,0.00019,2]
[399899095,1766832633466,-357.1197463,0.0001901,7]
[399899096,1766832633478,-1000.0,0.00019114,2]
[399899097,1766832633488,-1800.54,0.00019178,2]
[399899098,1766832633499,-500.0,0.00019178,2]
[399899099,1766832633509,-211.79,0.00019232,2]
[399899100,1766832633520,-683.1,0.00019283,2]
[399899101,1766832633530,-166.66,0.00019682,2]
[399899102,1766832633540,-881.79,0.00019859,2]
[399899103,1766832633551,-10886.10368052,0.0002,2]
[399899104,1766832633561,-25523.22306668,0.0002,2]
[399899105,1766832633571,-3088.33,0.0002,2]
[399899106,1766832633581,-3950.0,0.0002,2]
[399899107,1766832633591,-66921.97155255,0.0002,2]
[399899108,1766832633601,-7268.94331302,0.0002,2]
[399899109,1766832633612,-1290.79165848,0.0002,2]
[399899110,1766832633622,-1041.8845648,0.0002,2]
[399899111,1766832633633,-2855.19235709,0.0002,2]
[399899112,1766832633643,-12887.91273718,0.0002,2]
[399899113,1766832633653,-8720.0,0.0002001,2]
[399899114,1766832633664,-1003.88682252,0.000201,2]
[399899115,1766832633674,-383.38,0.00020187,2]
[399899116,1766832633685,-211.79,0.00020244,2]
[399899117,1766832633696,-173.89,0.00020333,2]
[399899118,1766832633707,-192.47,0.00020548,2]
[399899119,1766832633717,-22588.55268653,0.000207,2]
[399899120,1766832633727,-1000.0,0.00020852,2]
[399899121,1766832633738,-10129.58875448,0.00021,2]
[399899122,1766832633923,-6763.83446134,0.00021,2]
[399899123,1766832637487,-2188.98332652,0.00021,2]
[399899124,1766832637592,-794.81138429,0.00021,2]
[399899125,1766832637605,-122.78207337,0.00021,2]
[399899126,1766832637617,-512.66470125,0.00021,2]
[399899127,1766832637638,-676.9166255,0.00021,2]
[399899128,1766832637648,-196.35720147,0.00021,2]
[399899129,1766832637659,-350.0,0.00021,2]
[399899130,1766832637668,-3974.82143134,0.00021068,2]
[399899135,1766832639480,-388.09645538,0.00021068,2]
[399899136,1766832639743,-1264.29211328,0.00021068,2]
[399899137,1766832639753,-8.92388672,0.00021075,2]
[399899138,1766832639765,-674.17611328,0.00021075,2]
[399899139,1766832639778,-211.79,0.00021257,2]
[399899140,1766832639788,-250.0,0.00021263,2]
[399899141,1766832639798,-1022.50909742,0.00021263,2]
[399899168,1766832641759,-1.7e-07,0.00021263,2]
[399899172,1766832643670,-1509.00501676,0.00021263,2]
[399899173,1766832643681,-3481.16016373,0.00021263,2]
[399899174,1766832643694,-524.32572192,0.00021263,2]
[399899175,1766832643704,-150.114,0.00021263,2]
[399899176,1766832643715,-150.0,0.00021263,2]
[399899177,1766832643725,-150.065,0.00021263,2]
[399899178,1766832643735,-7240.73941846,0.00021333,2]
[399899179,1766832643745,-1024.39836439,0.0002136,2]
[399899180,1766832643755,-150.0,0.00021444,2]
[399899181,1766832643765,-221.47311405,0.000215,2]
[399899182,1766832643776,-9999.99,0.00021757,2]
[399899184,1766832643786,-9999.99,0.00021757,2]
[399899185,1766832643796,-9999.99,0.00021757,2]
[399899186,1766832643806,-150.99,0.00021757,2]
[399899187,1766832643816,-299.99,0.00021757,7]
[399899188,1766832643826,-150.99,0.00021757,2]
[399899189,1766832643836,-9999.99,0.00021757,2]
[399899190,1766832643846,-9999.99,0.00021757,2]
[399899191,1766832643856,-5000.0,0.00021918,2]
[399899192,1766832643865,-287.72,0.00021918,30]
[399899193,1766832643876,-500.0,0.00021918,2]
[399899194,1766832643886,-500.0,0.00021918,2]
[399899195,1766832643896,-500.0,0.00021918,2]
[399899196,1766832643905,-500.0,0.00021918,2]
[399899197,1766832643915,-500.0,0.00021918,2]
[399899198,1766832643924,-500.0,0.00021918,2]
[399899199,1766832643934,-500.0,0.00021918,2]
[399899200,1766832643943,-500.0,0.00021918,2]
[399899201,1766832643952,-500.0,0.00021918,2]
[399899202,1766832643961,-500.0,0.00021918,2]
[399899203,1766832643971,-500.0,0.00021918,2]
[399899204,1766832643980,-500.0,0.00021918,2]
[399899205,1766832643989,-500.0,0.00021918,2]
[399899206,1766832643998,-500.0,0.00021918,2]
[399899207,1766832644007,-538.90529748,0.00021918,2]
[399899208,1766832644017,-500.0,0.00021918,2]
[399899209,1766832644026,-500.0,0.00021918,2]
[399899210,1766832644035,-500.0,0.00021918,2]
[399899211,1766832644044,-500.0,0.00021918,2]
[399899212,1766832644053,-500.0,0.00021918,2]
[399899213,1766832644063,-153.65384883,0.00021918,2]
[399899214,1766832644073,-154.11,0.0002199,2]
[399899215,1766832644082,-250.0,0.00021992,2]
[399899216,1766832644092,-368198.28017693,0.00022,4]
[399899217,1766832644103,-940.99570647,0.00022,15]
[399899218,1766832644112,-211.79,0.00022269,2]
[399899219,1766832644122,-928.0819767,0.00022393,2]
[399899220,1766832644131,-151.0,0.00022455,2]
[399899221,1766832644140,-250.0,0.00022455,2]
[399899222,1766832644150,-250.0,0.00022455,2]
[399899223,1766832644160,-250.0,0.00022455,2]
[399899224,1766832644170,-250.0,0.00022455,2]
[399899225,1766832644179,-250.0,0.00022455,2]
[399899226,1766832644189,-250.0,0.00022455,2]
[399899227,1766832644198,-500.0,0.00022455,2]
[399899228,1766832644208,-271.87878952,0.00022455,2]
[399899229,1766832644217,-500.0,0.00022455,2]
[399899230,1766832644226,-500.0,0.00022455,2]
[399899231,1766832644235,-500.0,0.00022455,2]
[399899232,1766832644244,-500.0,0.00022455,2]
[399899233,1766832644254,-500.0,0.00022455,2]
[399899234,1766832644264,-250.0,0.00022455,2]
[399899235,1766832644273,-500.0,0.00022455,2]
[399899236,1766832644283,-500.0,0.00022455,2]
[399899237,1766832644295,-574.12855636,0.00022455,2]
[399899238,1766832644305,-250.0,0.00022455,2]
[399899239,1766832644315,-500.0,0.00022455,2]
[399899240,1766832644325,-500.0,0.00022455,2]
[399899241,1766832644334,-250.0,0.00022455,2]
[399899242,1766832644344,-500.0,0.00022455,2]
[399899243,1766832644354,-250.0,0.00022455,2]
[399899244,1766832644363,-500.0,0.00022455,2]
[399899245,1766832644373,-500.0,0.00022455,2]
[399899246,1766832644383,-500.0,0.00022455,2]
[399899247,1766832644392,-250.0,0.00022455,2]
[399899248,1766832644402,-500.0,0.00022455,2]
[399899250,1766832644411,-500.0,0.00022455,2]
[399899252,1766832644421,-500.0,0.00022455,2]
[399899254,1766832644430,-250.0,0.00022455,2]
[399899256,1766832644439,-500.0,0.00022455,2]
[399899258,1766832644449,-500.0,0.00022455,2]
[399899260,1766832644459,-500.0,0.00022455,2]
[399899262,1766832644468,-250.0,0.00022455,2]
[399899264,1766832644479,-500.0,0.00022455,2]
[399899266,1766832644489,-500.0,0.00022455,2]
[399899268,1766832644498,-500.0,0.00022455,2]
[399899270,1766832644508,-500.0,0.00022455,2]
[399899271,1766832644518,-250.0,0.00022455,2]
[399899272,1766832644528,-500.0,0.00022455,2]
[399899273,1766832644537,-500.0,0.00022455,2]
[399899274,1766832644547,-500.0,0.00022455,2]
[399899275,1766832644556,-250.0,0.00022455,2]
[399899276,1766832644566,-500.0,0.00022455,2]
[399899277,1766832644575,-500.0,0.00022455,2]
[399899278,1766832644585,-500.0,0.00022455,2]
[399899279,1766832644594,-250.0,0.00022455,2]
[399899280,1766832644604,-500.0,0.00022455,2]
[399899281,1766832644613,-500.0,0.00022455,2]
[399899282,1766832644623,-250.0,0.00022455,2]
[399899283,1766832644633,-500.0,0.00022455,2]
[399899284,1766832644642,-500.0,0.00022455,2]
[399899285,1766832644652,-500.0,0.00022455,2]
[399899286,1766832644662,-500.0,0.00022455,2]
[399899287,1766832644671,-500.0,0.00022455,2]
[399899288,1766832644681,-500.0,0.00022455,2]
[399899289,1766832644691,-269.30736556,0.00022455,2]
[399899290,1766832644701,-500.0,0.00022455,2]
[399899291,1766832644711,-500.0,0.00022455,2]
[399899292,1766832644721,-500.0,0.00022455,2]
[399899293,1766832644731,-500.0,0.00022455,2]
[399899294,1766832644740,-620.0,0.00022455,2]
[399899295,1766832644749,-500.0,0.00022455,2]
[399899296,1766832644759,-500.0,0.00022455,2]
[399899297,1766832644768,-322.6107,0.00022455,2]
[399899298,1766832644777,-250.0,0.00022455,2]
[399899299,1766832644787,-250.0,0.00022455,2]
[399899300,1766832644796,-250.0,0.00022455,2]
[399899301,1766832644805,-250.0,0.00022455,2]
[399899302,1766832644814,-250.0,0.00022455,2]
[399899303,1766832644825,-250.0,0.00022455,2]
[399899304,1766832644835,-250.0,0.00022455,2]
[399899305,1766832644845,-250.0,0.00022455,2]
[399899306,1766832644855,-250.0,0.00022455,2]
[399899307,1766832644864,-250.0,0.00022455,2]
[399899308,1766832644873,-250.0,0.00022455,2]
[399899309,1766832644883,-914.61,0.00022455,2]
[399899310,1766832644892,-350.0,0.0002254,2]
[399899311,1766832644902,-914.61,0.00022729,2]
[399899312,1766832644911,-914.61,0.00023003,2]
[399899313,1766832644921,-450.0,0.00023088,2]
[399899314,1766832644932,-21455.76,0.00023191,2]
[399899315,1766832644941,-1090.94,0.00023191,2]
[399899316,1766832644951,-500.0,0.00023205,2]
[399899317,1766832644961,-914.61,0.00023277,2]